fUST/lending_fUST_20240813
["ID","MTS","AMOUNT","RATE_DAILY","PERIOD"]
[334727290,1723512645874,-500.0,0.00014287,2]
[334727291,1723512645883,-840.76,0.00014287,2]
[334727292,1723512645894,-530.88,0.00014287,2]
[334727293,1723512645903,-530.88,0.00014287,2]
[334727294,1723512645913,-530.88,0.00014287,2]
[334727295,1723512645925,-530.88,0.00014287,2]
[334727296,1723512645935,-531.04,0.00014287,2]
[334727297,1723512645945,-500.0,0.00014287,2]
[334727298,1723512645955,-1792.58,0.00014287,2]
[334727299,1723512645964,-1044.44,0.00014287,2]
[334727300,1723512645974,-500.0,0.00014288,2]
[334727301,1723512645984,-500.0,0.00014288,2]
[334727302,1723512645993,-500.0,0.00014288,2]
[334727303,1723512646003,-500.0,0.00014288,2]
[334727304,1723512646013,-500.0,0.00014288,2]
[334727305,1723512646022,-500.0,0.00014288,2]
[334727306,1723512646032,-500.0,0.00014288,2]
[334727307,1723512646042,-151.0,0.00014288,2]
[334727308,1723512646052,-2014.49,0.00014288,2]
[334727309,1723512646062,-569.15,0.00014288,2]
[334727310,1723512646071,-500.0,0.00014288,2]
[334727312,1723512646081,-507.87468215,0.00014288,2]
[334727314,1723512646091,-500.0,0.00014288,2]
[334727315,1723512646101,-1680.3,0.00014288,2]
[334727316,1723512646111,-500.0,0.00014288,2]
[334727317,1723512646121,-151.0,0.00014288,2]
[334727318,1723512646131,-500.0,0.00014288,2]
[334727319,1723512646141,-500.0,0.00014288,2]
[334727320,1723512646151,-500.0,0.00014288,2]
[334727321,1723512646161,-513.34179872,0.00014288,2]
[334727322,1723512646172,-151.0,0.00014288,2]
[334727323,1723512646184,-500.0,0.00014288,2]
[334727324,1723512646197,-500.0,0.00014288,2]
[334727325,1723512646211,-401.64744829,0.00014288,2]
[334727326,1723512646226,-151.0,0.00014288,2]
[334727327,1723512646240,-151.0,0.00014288,2]
[334727328,1723512646250,-500.0,0.00014288,2]
[334727329,1723512646263,-500.0,0.00014288,2]
[334727330,1723512646275,-500.0,0.00014288,2]
[334727331,1723512646290,-500.0,0.00014288,2]
[334727332,1723512646303,-500.0,0.00014288,2]
[334727333,1723512646318,-587.91,0.00014288,2]
[334727334,1723512646333,-175.000361,0.00014288,2]
[334727335,1723512646346,-175.000361,0.00014288,2]
[334727336,1723512646360,-414.2521979,0.000143,2]
[334727337,1723512646374,-150.112233,0.000143,2]
[334727338,1723512646386,-154.0882096,0.000143,2]
[334727339,1723512646398,-308.1506605,0.00014301,2]
[334727340,1723512646411,-267.9524887,0.00014333,2]
[334727341,1723512646425,-267.9524887,0.00014333,2]
[334727342,1723512646437,-267.9524887,0.00014333,2]
[334727343,1723512646450,-267.9524887,0.00014333,2]
[334727344,1723512646462,-267.9524887,0.00014333,2]
[334727345,1723512646472,-153.0,0.00014356,2]
[334727346,1723512646482,-153.0,0.00014356,2]
[334727347,1723512646495,-153.0,0.00014356,2]
[334727348,1723512646506,-306.0,0.00014356,2]
[334727349,1723512646518,-4664.90494211,0.00014394,2]
[334727351,1723512646531,-150.112233,0.000144,2]
[334727354,1723512646544,-500.0,0.00014541,2]
[334727356,1723512646555,-3497.69,0.00014541,2]
[334727358,1723512646568,-1038.88,0.00014541,2]
[334727360,1723512646582,-945.26,0.00014541,2]
[334727363,1723512646594,-500.0,0.00014541,2]
[334727365,1723512646607,-500.0,0.00014541,2]
[334727367,1723512646617,-500.0,0.00014541,2]
[334727369,1723512646628,-1575.9,0.00014541,2]
[334727371,1723512646638,-5871.74,0.00014541,2]
[334727374,1723512646649,-821.69,0.00014541,2]
[334727376,1723512646662,-678.5,0.00014541,2]
[334727379,1723512646684,-1019.87,0.00014541,2]
[334727381,1723512646697,-955.72,0.00014541,2]
[334727383,1723512646709,-618.02,0.00014541,2]
[334727385,1723512646720,-711.64,0.00014541,2]
[334727388,1723512646734,-500.0,0.00014551,2]
[334727390,1723512646745,-500.0,0.00014551,2]
[334727392,1723512646757,-500.0,0.00014551,2]
[334727393,1723512646770,-783.12,0.00014551,2]
[334727394,1723512646781,-1225.32,0.00014551,2]
[334727395,1723512646792,-500.0,0.00014551,2]
[334727396,1723512646803,-500.0,0.00014551,2]
[334727398,1723512646814,-779.9,0.00014551,2]
[334727400,1723512646826,-1231.09,0.00014551,2]
[334727402,1723512646836,-3330.08,0.00014551,2]
[334727403,1723512646847,-1177.82,0.00014551,2]
[334727404,1723512646858,-500.0,0.00014551,2]
[334727405,1723512646870,-533.03,0.00014551,2]
[334727406,1723512646881,-500.0,0.00014551,2]
[334727407,1723512646892,-500.0,0.00014551,2]
[334727408,1723512646904,-500.0,0.00014551,2]
[334727409,1723512646915,-1225.1,0.00014551,2]
[334727410,1723512646927,-500.0,0.00014551,2]
[334727411,1723512646937,-1174.91,0.00014551,2]
[334727412,1723512646948,-500.0,0.00014551,2]
[334727413,1723512646959,-500.0,0.00014551,2]
[334727414,1723512646970,-595.4,0.00014551,2]
[334727415,1723512646981,-1176.68,0.00014551,2]
[334727416,1723512646991,-766.74,0.00014551,2]
[334727417,1723512647002,-803.71,0.00014551,2]
[334727418,1723512647013,-3446.63,0.00014551,2]
[334727419,1723512647024,-1274.85,0.00014551,2]
[334727420,1723512647034,-188.329722,0.00014551,2]
[334727421,1723512647045,-188.329722,0.00014551,2]
[334727422,1723512647056,-565.80287964,0.00014551,2]
[334727423,1723512647067,-500.0,0.00014551,2]
[334727424,1723512647078,-6242.64,0.00014551,2]
[334727425,1723512647089,-334.408309,0.00014551,2]
[334727426,1723512647100,-672.93,0.00014551,2]
[334727427,1723512647111,-334.408309,0.00014551,2]
[334727428,1723512647122,-153.366219,0.00014551,2]
[334727429,1723512647133,-500.0,0.00014551,2]
[334727430,1723512647144,-153.366219,0.00014551,2]
[334727431,1723512647155,-773.3,0.00014551,2]
[334727432,1723512647166,-2015.14,0.00014551,2]
[334727433,1723512647177,-549.68,0.00014551,2]
[334727434,1723512647189,-151.0,0.00014551,2]
[334727435,1723512647200,-500.0,0.00014551,2]
[334727436,1723512647211,-151.0,0.00014551,2]
[334727437,1723512647222,-500.0,0.0001456,2]
[334727438,1723512647233,-500.0,0.0001456,2]
[334727439,1723512647248,-500.0,0.0001456,2]
[334727440,1723512647259,-500.0,0.0001456,2]
[334727441,1723512647271,-500.0,0.0001456,2]
[334727442,1723512647282,-500.0,0.0001456,2]
[334727443,1723512647292,-500.0,0.0001456,2]
[334727444,1723512647304,-500.0,0.0001456,2]
[334727445,1723512647315,-500.0,0.0001456,2]
[334727446,1723512647327,-500.0,0.0001456,2]
[334727447,1723512647337,-643.73,0.0001456,2]
[334727448,1723512647349,-539.71,0.0001456,2]
[334727449,1723512647359,-500.0,0.0001456,2]
[334727450,1723512647370,-500.0,0.0001456,2]
[334727451,1723512647381,-565.21,0.0001456,2]
[334727452,1723512647392,-500.0,0.0001456,2]
[334727453,1723512647403,-500.0,0.0001456,2]
[334727454,1723512647414,-734.64,0.0001456,2]
[334727455,1723512647430,-500.0,0.0001456,2]
[334727456,1723512647441,-500.0,0.0001456,2]
[334727457,1723512647452,-500.0,0.0001456,2]
[334727458,1723512647463,-683.74,0.0001456,2]
[334727459,1723512647473,-500.0,0.0001456,2]
[334727460,1723512647484,-500.0,0.0001456,2]
[334727461,1723512647494,-500.0,0.0001456,2]
[334727462,1723512647505,-500.0,0.0001456,2]
[334727463,1723512647516,-500.0,0.0001456,2]
[334727464,1723512647527,-500.0,0.0001456,2]
[334727465,1723512647537,-175.000361,0.0001456,2]
[334727466,1723512647549,-175.000361,0.0001456,2]
[334727467,1723512647560,-572.69,0.0001456,2]
[334727468,1723512647570,-270.176649,0.0001456,2]
[334727469,1723512647579,-270.176649,0.0001456,2]
[334727470,1723512647589,-151.0,0.0001456,2]
[334727471,1723512647598,-500.0,0.0001456,2]
[334727472,1723512647607,-683.85,0.0001456,2]
[334727473,1723512647617,-500.0,0.0001456,2]
[334727474,1723512647626,-500.0,0.0001456,2]
[334727475,1723512647635,-931.83,0.0001456,2]
[334727476,1723512647645,-500.0,0.0001456,2]
[334727477,1723512647654,-1555.55943865,0.0001456,2]
[334727480,1723512700934,151.52,0.00010959,2]
[334727481,1723512711470,757.64,0.00010959,2]
[334727482,1723512812233,159.255418,0.00027,120]
[334727483,1723512851015,268.97563902,9.999e-05,2]
[334727485,1723512953494,8370.82433375,9.999e-05,2]
[334727486,1723512964523,2075.52213182,9.999e-05,2]
[334727487,1723512974471,264.90582689,9.999e-05,2]
[334727488,1723512980906,221.68106494,9.999e-05,2]
[334727489,1723512981933,165.95791155,9.999e-05,2]
[334727490,1723512995082,332.25653128,9.999e-05,2]
[334727491,1723512997171,211.37306034,9.999e-05,2]
[334727492,1723513010059,332.25653128,9.999e-05,2]
[334727493,1723513011022,155.09099233,9.999e-05,2]
[334727494,1723513015209,301.92146246,9.999e-05,2]
[334727495,1723513016598,818.94641667,9.999e-05,2]
[334727496,1723513025775,156.44048676,9.999e-05,2]
[334727497,1723513113143,19999.999999,0.00016,4]
[334727498,1723513160492,588.13,0.00025,60]
[334727502,1723513402413,250.59023246,9.999e-05,2]
[334727503,1723513413413,250.59023246,9.999e-05,2]
[334727504,1723513424289,274.15312969,9.999e-05,2]
[334727505,1723513501781,10918.68838476,9.999e-05,2]
[334727506,1723513511173,521.14856838,9.999e-05,2]
[334727507,1723513529670,154.92097033,9.999e-05,2]
[334727508,1723513533607,154.94638801,9.999e-05,2]
[334727509,1723513572384,205.58303261,9.999e-05,2]
[334727511,1723513576294,155.28227194,9.999e-05,2]
[334727512,1723513576961,160.3458083,9.999e-05,2]
[334727513,1723513577260,154.8535547,9.999e-05,2]
[334727514,1723513589093,294.0,0.00027,120]
[334727515,1723513613700,155.09533524,9.999e-05,2]
[334727516,1723513618109,157.73406628,9.999e-05,2]
[334727517,1723513627684,244.89629235,9.999e-05,2]
[334727518,1723513650165,-161.60912248,0.0001212,2]
[334727519,1723513650189,-263.6883041,0.00012993,2]
[334727520,1723513650211,-154.90166962,0.00013,2]
[334727521,1723513650238,-4421.38554493,0.00013872,2]
[334727522,1723513650260,-1690.57718365,0.00013883,2]
[334727523,1723513650281,-186.28496254,0.00013892,2]
[334727524,1723513650303,-300.0,0.000139,2]
[334727525,1723513650324,-500.0,0.00013901,2]
[334727526,1723513650345,-503.30331675,0.00013901,2]
[334727527,1723513650368,-1600.26,0.00013901,2]
[334727528,1723513650390,-500.0,0.00013901,2]
[334727529,1723513650411,-504.94999007,0.00013901,2]
[334727530,1723513650432,-504.90979449,0.00013901,2]
[334727531,1723513650453,-689.6,0.00013901,2]
[334727532,1723513650475,-500.0,0.00013901,2]
[334727533,1723513650500,-5987.07,0.00013901,2]
[334727534,1723513650521,-500.0,0.00013901,2]
[334727535,1723513650542,-2.08249139,0.00013901,2]
[334727539,1723513751742,163.10062057,9.999e-05,2]
[334727540,1723513774102,-186.28496254,0.00013883,2]
[334727541,1723513774124,-300.0,0.0001389,2]
[334727542,1723513774145,-200.35003005,0.00013891,2]
[334727543,1723513774168,-500.0,0.00013891,2]
[334727544,1723513774191,-185.46783785,0.00013891,2]
[334727545,1723513774223,-500.0,0.00013891,2]
[334727546,1723513774246,-500.0,0.00013891,2]
[334727547,1723513774269,-500.0,0.00013891,2]
[334727548,1723513774293,-500.0,0.00013891,2]
[334727549,1723513774316,-556.08825449,0.00013891,2]
[334727550,1723513774339,-357.45676429,0.00013891,2]
[334727551,1723513774372,-524.48160941,0.00013891,2]
[334727552,1723513774395,-500.0,0.00013891,2]
[334727553,1723513774417,-2992.70955048,0.00013892,2]
[334727615,1723513832833,-300.0,0.00013891,2]
[334727619,1723513832843,-919.48,0.00013892,2]
[334727622,1723513832853,-300.30938365,0.00013892,2]
[334727625,1723513832865,-7417.90139432,0.00013892,2]
[334727713,1723513839385,-6858.13738552,0.00013892,2]
[334727714,1723513839396,-274.14,0.00013892,2]
[334727715,1723513839408,-115513.41014203,0.00013892,2]
[334727716,1723513839418,-910.31,0.000139,2]
[334727718,1723513839427,-497.91750861,0.00013901,2]
[334727719,1723513839437,-500.0,0.00013901,2]
[334727720,1723513839446,-512.27316508,0.00013901,2]
[334727721,1723513839455,-507.34804136,0.00013901,2]
[334727722,1723513839463,-500.0,0.00013901,2]
[334727723,1723513839473,-687.75,0.00013901,2]
[334727724,1723513839481,-500.0,0.00013901,2]
[334727725,1723513839491,-500.0,0.00013901,2]
[334727726,1723513839501,-3632.77,0.00013901,2]
[334727727,1723513839510,-1110.45,0.00013901,2]
[334727728,1723513839519,-507.58452473,0.00013901,2]
[334727729,1723513839529,-965.21,0.00013901,2]
[334727730,1723513839538,-506.60105876,0.00013901,2]
[334727731,1723513839547,-3518.68,0.00013901,2]
[334727732,1723513839557,-547.4,0.00013901,2]
[334727733,1723513839567,-1258.32,0.00013901,2]
[334727734,1723513839577,-504.17943454,0.00013901,2]
[334727735,1723513839587,-500.0,0.00013901,2]
[334727736,1723513839597,-500.0,0.00013901,2]
[334727737,1723513839609,-500.0,0.00013901,2]
[334727738,1723513839620,-500.0,0.00013901,2]
[334727739,1723513839632,-557.67633216,0.00013901,2]
[334727740,1723513839643,-2427.8,0.00013901,2]
[334727741,1723513839653,-2427.8,0.00013901,2]
[334727742,1723513839663,-507.2699207,0.00013901,2]
[334727743,1723513839672,-506.70265238,0.00013901,2]
[334727744,1723513839681,-1256.15,0.00013901,2]
[334727745,1723513839692,-500.0,0.00013901,2]
[334727746,1723513839704,-1322.76,0.00013901,2]
[334727747,1723513839716,-500.0,0.00013901,2]
[334727748,1723513839726,-1533.58,0.00013901,2]
[334727749,1723513839739,-841.6,0.00013901,2]
[334727750,1723513839749,-505.62278697,0.00013901,2]
[334727751,1723513839759,-660.87,0.00013901,2]
[334727752,1723513839769,-4240.84,0.00013901,2]
[334727753,1723513839779,-500.0,0.00013901,2]
[334727754,1723513839789,-507.7455186,0.00013901,2]
[334727755,1723513839798,-1040.36,0.00013901,2]
[334727756,1723513839808,-515.6222114,0.00013901,2]
[334727757,1723513839817,-510.26957456,0.00013901,2]
[334727758,1723513839975,-501.3757287,0.00013901,2]
[334727759,1723513839986,-1327.48,0.00013901,2]
[334727760,1723513839995,-532.32832869,0.00013901,2]
[334727761,1723513840005,-505.44999478,0.00013901,2]
[334727762,1723513840015,-6346.01,0.00013901,2]
[334727763,1723513840024,-512.03894059,0.00013901,2]
[334727764,1723513840035,-502.59691967,0.00013901,2]
[334727765,1723513840046,-502.33741563,0.00013901,2]
[334727766,1723513840055,-505.18466921,0.00013901,2]
[334727767,1723513840064,-505.70706712,0.00013901,2]
[334727768,1723513840074,-88888.0,0.00013902,2]
[334727769,1723513840083,-26597.64511334,0.00013973,2]
[334727770,1723513840092,-133356.607856,0.00013973,2]
[334727771,1723513840102,-266713.215711,0.00013982,2]
[334727772,1723513840111,-500.0,0.00013983,2]
[334727773,1723513840120,-500.0,0.00013983,2]
[334727774,1723513840130,-506.54267885,0.00013983,2]
[334727775,1723513840139,-504.97025095,0.00013983,2]
[334727776,1723513840148,-695.65,0.00013983,2]
[334727777,1723513840160,-505.0,0.00013983,2]
[334727779,1723513840169,-503.80614927,0.00013983,2]
[334727780,1723513840178,-506.15263485,0.00013983,2]
[334727782,1723513840188,-504.51121269,0.00013983,2]
[334727783,1723513840198,-512.66756479,0.00013983,2]
[334727784,1723513840207,-514.45262368,0.00013983,2]
[334727785,1723513840218,-502.55693021,0.00013983,2]
[334727786,1723513840228,-564.12758029,0.00013983,2]
[334727787,1723513840239,-503.45512935,0.00013983,2]
[334727788,1723513840250,-500.0,0.00013983,2]
[334727789,1723513840260,-286.74941357,0.00013983,2]
[334727790,1723513840270,-502.15039408,0.00013983,2]
[334727791,1723513840280,-500.0,0.00013983,2]
[334727792,1723513840289,-500.6539124,0.00013983,2]
[334727793,1723513840299,-505.9565507,0.00013983,2]
[334727794,1723513840308,-501.91736511,0.00013983,2]
[334727795,1723513840317,-503.34967199,0.00013983,2]
[334727796,1723513840326,-505.50713472,0.00013983,2]
[334727797,1723513840336,-2000.0,0.00013983,2]
[334727798,1723513840345,-1178.14169129,0.00013983,2]
[334727799,1723513840354,-561.35168058,0.00013983,2]
[334727800,1723513840364,-500.0,0.00013983,2]
[334727801,1723513840373,-910.07,0.00013983,2]
[334727802,1723513840382,-506.17321874,0.00013983,2]
[334727803,1723513840391,-288.9447457,0.00013983,2]
[334727804,1723513840401,-500.0,0.00013983,2]
[334727805,1723513840411,-500.0,0.00013983,2]
[334727806,1723513840421,-508.89044468,0.00013983,2]
[334727808,1723513840430,-500.0,0.00013983,2]
[334727809,1723513840439,-500.0,0.00013983,2]
[334727810,1723513840448,-476.13085487,0.00013983,2]
[334727811,1723513840458,-500.0,0.00013983,2]
[334727812,1723513840469,-500.0,0.00013983,2]
[334727813,1723513840479,-500.0,0.00013983,2]
[334727814,1723513840488,-500.0,0.00013983,2]
[334727815,1723513840497,-1230.92,0.00013983,2]
[334727816,1723513840507,-500.0,0.00013983,2]
[334727817,1723513840516,-500.0,0.00013983,2]
[334727818,1723513840525,-500.0,0.00013983,2]
[334727819,1723513840534,-500.0,0.00013983,2]
[334727820,1723513840544,-500.0,0.00013983,2]
[334727821,1723513840553,-500.0,0.00013983,2]
[334727822,1723513840563,-806.68,0.00013983,2]
[334727823,1723513840573,-500.0,0.00013983,2]
[334727824,1723513840584,-1610.36,0.00013983,2]
[334727825,1723513840594,-2427.8,0.00013991,2]
[334727826,1723513840604,-566.52,0.00013992,2]
[334727827,1723513840615,-500.0,0.00013992,2]
[334727828,1723513840627,-505.79186455,0.00013992,2]
[334727829,1723513840636,-587.77,0.00013992,2]
[334727830,1723513840645,-508.37419749,0.00013992,2]
[334727831,1723513840655,-507.34307734,0.00013992,2]
[334727832,1723513840666,-500.0,0.00013992,2]
[334727833,1723513840675,-506.61237687,0.00013992,2]
[334727834,1723513840684,-613.5,0.00013992,2]
[334727835,1723513840695,-541.02993441,0.00013992,2]
[334727836,1723513840704,-500.0,0.00013992,2]
[334727837,1723513840714,-734.72,0.00013992,2]
[334727838,1723513840723,-500.0,0.00013992,2]
[334727839,1723513840733,-508.46727453,0.00013992,2]
[334727840,1723513840742,-500.0,0.00013992,2]
[334727841,1723513840751,-500.0,0.00013992,2]
[334727842,1723513840760,-593.57865587,0.00013992,2]
[334727843,1723513840769,-574.28,0.00013992,2]
[334727844,1723513840779,-500.0,0.00013992,2]
[334727845,1723513840788,-2311.99,0.00013992,2]
[334727846,1723513840797,-500.0,0.00013992,2]
[334727847,1723513840807,-3244.11,0.00013992,2]
[334727848,1723513840816,-810.85,0.00013992,2]
[334727849,1723513840826,-500.0,0.00013992,2]
[334727850,1723513840835,-504.86457116,0.00013992,2]
[334727851,1723513840844,-500.0,0.00013992,2]
[334727852,1723513840853,-500.0,0.00013992,2]
[334727853,1723513840862,-839.5,0.00013992,2]
[334727854,1723513840871,-1024.89,0.00013992,2]
[334727855,1723513840880,-500.0,0.00013992,2]
[334727856,1723513840889,-2206.56,0.00013992,2]
[334727857,1723513840899,-500.0,0.00013992,2]
[334727858,1723513840908,-538.88936647,0.00013992,2]
[334727859,1723513840917,-500.0,0.00013992,2]
[334727860,1723513840926,-500.0,0.00013992,2]
[334727861,1723513840936,-1332.39,0.00013992,2]
[334727862,1723513840946,-1119.42,0.00013992,2]
[334727863,1723513840955,-500.0,0.00013992,2]
[334727864,1723513840964,-953.01,0.00013992,2]
[334727865,1723513840973,-500.0,0.00013992,2]
[334727866,1723513840984,-500.0,0.00013992,2]
[334727867,1723513840994,-500.0,0.00013992,2]
[334727868,1723513841004,-500.0,0.00013992,2]
[334727869,1723513841016,-941.28,0.00013992,2]
[334727870,1723513841026,-560.09,0.00013992,2]
[334727871,1723513841036,-1781.65,0.00013992,2]
[334727872,1723513841046,-500.0,0.00013992,2]
[334727873,1723513841055,-500.0,0.00013992,2]
[334727874,1723513841066,-500.0,0.00013992,2]
[334727875,1723513841075,-321.49756004,0.00013992,2]
[334727876,1723513841085,-1274.07,0.00013992,2]
[334727877,1723513841094,-2842.79,0.00013992,2]
[334727878,1723513841103,-743.7,0.00013992,2]
[334727879,1723513841113,-500.0,0.00013992,2]
[334727880,1723513841123,-500.0,0.00013992,2]
[334727881,1723513841132,-500.0,0.00013992,2]
[334727882,1723513841141,-503.4939137,0.00013992,2]
[334727883,1723513841150,-591.93,0.00013992,2]
[334727884,1723513841161,-600.58,0.00013992,2]
[334727885,1723513841170,-794.63,0.00013992,2]
[334727886,1723513841179,-1375.43,0.00013992,2]
[334727887,1723513841188,-2427.8,0.00013992,2]
[334727888,1723513841197,-500.0,0.00013992,2]
[334727889,1723513841207,-2427.8,0.00013992,2]
[334727890,1723513841216,-2427.8,0.00013992,2]
[334727891,1723513841225,-758.15,0.00013992,2]
[334727892,1723513841234,-500.0,0.00013992,2]
[334727893,1723513841244,-2427.8,0.00013992,2]
[334727894,1723513841253,-2427.8,0.00013992,2]
[334727895,1723513841263,-505.9154111,0.00013992,2]
[334727896,1723513841272,-1262.16,0.00013992,2]
[334727897,1723513841282,-3589.79,0.00013992,2]
[334727898,1723513841291,-905.32,0.00013992,2]
[334727899,1723513841300,-500.0,0.00013992,2]
[334727900,1723513841311,-500.0,0.00013992,2]
[334727901,1723513841321,-500.0,0.00013992,2]
[334727902,1723513841331,-500.0,0.00013992,2]
[334727903,1723513841341,-500.0,0.00013992,2]
[334727904,1723513841350,-658.95,0.00013992,2]
[334727905,1723513841359,-602.22080301,0.00013992,2]
[334727906,1723513841369,-554.49,0.00013992,2]
[334727907,1723513841379,-568.45,0.00013992,2]
[334727908,1723513841391,-665.73,0.00013992,2]
[334727909,1723513841402,-500.0,0.00013992,2]
[334727910,1723513841414,-500.0,0.00013992,2]
[334727911,1723513841424,-500.0,0.00013992,2]
[334727912,1723513841434,-500.0,0.00013992,2]
[334727913,1723513841447,-500.7342009,0.00013992,2]
[334727914,1723513841456,-789.83,0.00013992,2]
[334727915,1723513841471,-500.0,0.00013992,2]
[334727916,1723513841482,-500.0,0.00013992,2]
[334727917,1723513841492,-500.0,0.00013992,2]
[334727918,1723513841502,-500.0,0.00013992,2]
[334727919,1723513841512,-500.0,0.00013992,2]
[334727920,1723513841523,-500.0,0.00013992,2]
[334727921,1723513841534,-500.0,0.00013992,2]
[334727922,1723513841544,-504.91032273,0.00013993,2]
[334727923,1723513841555,-509.60447188,0.00013993,2]
[334727924,1723513841564,-504.40007358,0.00013993,2]
[334727925,1723513841575,-500.87252512,0.00013993,2]
[334727926,1723513841586,-507.18192658,0.00013993,2]
[334727927,1723513841597,-505.53557053,0.00013993,2]
[334727928,1723513841607,-500.72057933,0.00013993,2]
[334727929,1723513841621,-501.35365287,0.00013993,2]
[334727930,1723513841632,-503.97723441,0.00013993,2]
[334727931,1723513841643,-506.89525715,0.00013993,2]
[334727932,1723513841652,-501.85291966,0.00013993,2]
[334727933,1723513841664,-503.91324765,0.00013993,2]
[334727934,1723513841676,-504.70948886,0.00013993,2]
[334727935,1723513841687,-504.55040292,0.00013993,2]
[334727936,1723513841701,-501.97427302,0.00013993,2]
[334727937,1723513841712,-508.4712836,0.00013993,2]
[334727938,1723513841723,-516.34187015,0.00013993,2]
[334727939,1723513841732,-500.0,0.00013993,2]
[334727940,1723513841745,-500.0,0.00013993,2]
[334727941,1723513841755,-586.86283865,0.00013993,2]
[334727942,1723513841765,-763.56,0.00013993,2]
[334727943,1723513841776,-510.12521374,0.00013993,2]
[334727944,1723513841789,-524.18,0.00013993,2]
[334727945,1723513841801,-500.0,0.00013993,2]
[334727946,1723513841812,-500.0,0.00013993,2]
[334727947,1723513841822,-500.0,0.00013993,2]
[334727948,1723513841831,-500.0,0.00013993,2]
[334727949,1723513841842,-505.0491654,0.00013993,2]
[334727950,1723513841851,-501.03037611,0.00013993,2]
[334727951,1723513841861,-503.24555776,0.00013993,2]
[334727952,1723513841870,-500.0,0.00013993,2]
[334727953,1723513841880,-500.0,0.00013993,2]
[334727954,1723513841889,-500.95482715,0.00013993,2]
[334727955,1723513841899,-530.69285422,0.00013993,2]
[334727956,1723513841910,-503.6887129,0.00013993,2]
[334727957,1723513841921,-677.18,0.00013993,2]
[334727958,1723513841933,-503.02599088,0.00013993,2]
[334727959,1723513841943,-500.0,0.00013993,2]
[334727960,1723513841953,-500.0,0.00013993,2]
[334727961,1723513841962,-512.20199397,0.00013993,2]
[334727962,1723513841972,-505.8504152,0.00013993,2]
[334727963,1723513841982,-500.0,0.00013993,2]
[334727964,1723513841991,-500.0,0.00013993,2]
[334727965,1723513842003,-500.0,0.00013993,2]
[334727966,1723513842013,-500.0,0.00013993,2]
[334727967,1723513842023,-419.08746111,0.00013993,2]
[334727968,1723513842035,-502.93887016,0.00013993,2]
[334727969,1723513842047,-504.60567424,0.00013993,2]
[334727970,1723513842058,-502.79947708,0.00013993,2]
[334727971,1723513842068,-500.0,0.00013993,2]
[334727972,1723513842077,-504.16868989,0.00013993,2]
[334727973,1723513842086,-500.0,0.00013993,2]
[334727974,1723513842096,-506.66210793,0.00013993,2]
[334727975,1723513842106,-510.26480008,0.00013993,2]
[334727976,1723513842115,-500.0,0.00013993,2]
[334727977,1723513842124,-500.0,0.00013993,2]
[334727978,1723513842133,-505.29676684,0.00013993,2]
[334727979,1723513842143,-500.0,0.00013993,2]
[334727980,1723513842152,-500.0,0.00013993,2]
[334727981,1723513842162,-585.13,0.00013993,2]
[334727982,1723513842172,-502.99478734,0.00013993,2]
[334727983,1723513842181,-505.23308106,0.00013993,2]
[334727984,1723513842190,-579.79,0.00013993,2]
[334727985,1723513842199,-507.01753029,0.00013993,2]
[334727986,1723513842209,-505.5050666,0.00013993,2]
[334727987,1723513842218,-500.0,0.00013993,2]